[Event "45th FIDE Olympiad 2024"]
[Site "Budapest"]
[Date "2024.09.15"]
[Round "5.122"]
[White "Wong, Jianwen"]
[Black "Maerevoet, Sim"]
[Result "1/2-1/2"]
[ECO "A09"]
[WhiteElo "2231"]
[BlackElo "2432"]
[Annotator "TA"]
[PlyCount "197"]
[EventDate "2024.09.05"]
[EventType "team-tourn"]
[EventCountry "HUN"]
[SourceTitle "playchess.com"]
[Source "ChessBase"]
[SourceQuality "1"]
[WhiteTeam "Malaysia"]
[BlackTeam "Belgium"]
[WhiteTeamCountry "MAS"]
[BlackTeamCountry "BEL"]
[TimeControl "40/5400+30:1800+30"]

{[%evp 10,197,-3,-9,31,22,22,25,22,28,89,100,85,91,88,90,120,80,84,61,66,34,106,52,64,18,23,28,56,45,54,54,63,57,50,38,90,80,86,58,122,104,108,110,122,120,109,118,219,240,255,93,91,93,116,96,96,89,129,83,177,167,169,186,164,159,219,214,254,182,193,188,193,187,205,205,200,214,199,206,206,205,205,206,206,206,522,492,430,411,1131,1000,1150,1131,1131,1131,1139,1131,1131,1117,1117,1117,1117,1117,1117,1117,1110,1110,1110,1110,1110,1110,1110,1102,1102,1095,1088,1073,1073,1073,1081,1081,1073,14,25,8,8,8,8,8,8,8,8,8,14,14,14,8,8,0,0,0,0,0,14,0,8,8,8,8,8,8,8,8,8,8,8,8,8,8,8,0,0,0,8,8,8,8,8,0,0,0,8,8,8,8,8,8,8,8,8,8,8,8,8,0,14,0,14,0]} 1. Nf3 d5 2. c4 d4 3. g3 Nc6 4. Bg2 e5 5. d3 Nf6 6. O-O {[%cal Ob2b4]} Bc5 {[#]} 7. b4 $1 Nxb4 8. Nxe5 O-O {White has an edge.} 9. a3 Nc6 10. Nxc6 $16 bxc6 11. Nd2 {[%cal Bb1d2,Bd2b3,Bb3a5][%mdl 32]} Qe7 12. Nb3 Bg4 13. Ra2 {[%cal Oc1f4]} (13. Bxc6 Bxe2 14. Qd2 Bxf1 15. Bxa8 Rxa8 $14) 13... Rab8 14. Na5 Rb6 15. h3 Bh5 (15... Be6 $14) 16. Bf4 (16. Bxc6 $6 Rxc6 17. Nxc6 Qe6 $11) (16. Nxc6 $16 Qd6 17. Nb4 (17. Nxa7 Qd7 $16)) 16... Ra6 17. Qd2 (17. Nb3 $14 {deserves consideration.}) 17... Qxe2 $11 18. Nb3 Rxa3 19. Rxa3 (19. Nxc5 $2 Rxa2 20. Qxe2 Bxe2 $19) 19... Bxa3 20. Ra1 $1 $36 {[%cal Bf1a1,Ba1a7,Ba7c7][%mdl 2080] White has good play.} (20. Bxc6 Qxd2 21. Bxd2 Bg6 $16) (20. Qa5 Bd6 21. Nxd4 Qxd3 22. Bxd6 cxd6 23. Nxc6 Qxc4 $11) 20... Qxd2 21. Bxd2 Bb2 22. Rxa7 Bg6 (22... h6 $14) 23. Bf1 $1 $16 {White is more active.} (23. Bxc6 $6 Bxd3 24. c5 Bc4 25. Rxc7 (25. Na5 Be6 $15) 25... Rb8 $11 (25... Bxb3 26. Rb7 $11)) 23... h6 24. Rxc7 {[%cal Og1g2]} Bc3 (24... Rb8 $14 25. Nc5 (25. Na5 Bc3 $11) 25... Ba3) 25. Bf4 $1 (25. Rxc6 Rb8 26. Nxd4 Bxd2 $19 (26... Bxd4 $2 27. Be3 $19)) 25... Rb8 26. Nc5 (26. Rxc6 $2 Rxb3 27. Rc8+ Kh7 $19) 26... Rb2 27. g4 (27. Rxc6 $6 Be1 $11) 27... Be1 28. Bg3 ({Don't play} 28. Rxc6 Bxf2+ (28... Rxf2 29. Be5 $14) 29. Kh1 Be3 $15) 28... Rb6 (28... h5 $16) 29. h4 $18 Bb4 30. Nd7 (30. Rc8+ $1 $18 {is the precise move to win.} Kh7 31. Bc7 Bxc5 32. Bxb6 Bxb6 33. h5 (33. Rxc6 Ba5 $18)) 30... Nxd7 $16 31. Rxd7 h5 32. gxh5 ({Much less strong is} 32. Rxd4 hxg4 33. Bg2 (33. Rxg4 Bc3 $14) 33... Bc5 34. Rd8+ Kh7 $11) 32... Bxh5 33. Rxd4 Kh7 34. Rd8 (34. Rd7 $142) 34... Be7 (34... Bg4 $16) 35. Rd7 $18 Bf6 36. Bg2 $1 Bg6 37. Be4 $1 c5 (37... Kg8 $16 38. Bxg6 fxg6) 38. Rxf7 Bd4 39. Bxg6+ Kxg6 {[%mdl 4096] Endgame. KRB-KRB} 40. Rf3 $1 Rb1+ 41. Kg2 Rd1 42. Bf4 Kh5 {[#]} 43. Bg5 Kg4 {[%cal Od1g1]} 44. Be3 {Threatens to win with Rf4+.} Rxd3 45. Rf4+ Kh5 46. Bxd4 cxd4 {[#] KR-KR} 47. Kf1 $1 Rd2 (47... Kg6 {is tougher.} 48. Ke2 Rc3) 48. Ke1 Rc2 49. Rxd4 g5 (49... Ra2 $142 50. Re4 g6) 50. hxg5 Kxg5 51. Kf1 Kf5 52. Kg2 Rc3 53. f3 Rc1 54. Re4 Ra1 55. Kf2 {And now Ke3 would win.} Ra3 56. Re3 Ra2+ 57. Kg3 Rc2 58. Re4 Rc1 59. Kf2 Rc3 60. Ke2 Ra3 61. Rd4 Ke5 62. Rd3 Ra4 63. Rc3 {Black must now prevent c5.} Kd4 64. Rc2 Ra6 65. c5 {Strongly threatening c6.} Re6+ 66. Kd2 $2 (66. Kf2 $18 {c6 would now be deadly.} Kd3 67. Rc1) 66... Rc6 $11 67. Rc1 Rh6 $1 {( -> ...Rh2+). The position is equal.} 68. Re1 Kxc5 69. Re4 Rh8 70. Ke3 Kd5 71. Kf2 Rf8 72. Kg3 Rg8+ 73. Kh3 Rf8 74. Kg4 Rg8+ 75. Kf4 Rf8+ 76. Ke3 Rh8 77. Kf2 Rf8 78. Re2 Kd6 79. Re1 Kd5 80. Re3 Kd6 81. Kg3 Rg8+ 82. Kh4 Rf8 83. Kg5 Rg8+ 84. Kf6 Rf8+ 85. Kg7 Rf4 86. Kh6 Rf8 87. Kg6 Kd5 88. Kg5 Rg8+ 89. Kf6 {aiming for Re5+.} Rf8+ 90. Kg5 Rg8+ 91. Kf5 Rf8+ 92. Kg4 Rg8+ 93. Kf4 Rf8+ 94. Kg3 Rg8+ 95. Kf2 Rf8 96. Re4 Rg8 97. Ke3 Rh8 98. Kd2 Kc5 99. Ke3 {Blacks defense is rewarded with a draw.   Weighted Error Value: White=0.12 (very precise) /Black=0.30.  Missed win:     	White=1     	---        Mistake:       	White=3     	Black=9      Inaccurate:     	White=3     	Black=3      OK:         	White=24    	Black=35     Best:        	White=6     	Black=9      Strong:       	White=4     	Black=1      Brilliant:      	White=1     	---} 1/2-1/2

[Event "45th FIDE Olympiad 2024"]
[Site "Budapest"]
[Date "2024.09.15"]
[Round "5.123"]
[White "Hovhannisyan, Mher"]
[Black "Ang, Ern Jie Anderson"]
[Result "1/2-1/2"]
[ECO "D13"]
[WhiteElo "2414"]
[BlackElo "2132"]
[Annotator "TA"]
[PlyCount "83"]
[EventDate "2024.09.05"]
[EventType "team-tourn"]
[EventCountry "HUN"]
[SourceTitle "playchess.com"]
[Source "ChessBase"]
[SourceQuality "1"]
[WhiteTeam "Belgium"]
[BlackTeam "Malaysia"]
[WhiteTeamCountry "BEL"]
[BlackTeamCountry "MAS"]
[TimeControl "40/5400+30:1800+30"]

{[%evp 14,83,34,20,56,72,143,0,23,36,31,35,24,25,37,34,49,49,67,59,83,81,85,70,66,62,65,64,51,75,79,82,72,0,95,14,43,12,37,30,56,64,79,38,31,35,42,44,27,27,27,27,27,0,0,0,0,0,0,0,0,0,0,0,0,0,0,0,0,0,0,-8]} 1. d4 d5 2. c4 c6 3. cxd5 cxd5 4. Nc3 Nf6 5. Bf4 Nc6 6. e3 a6 7. Nf3 Bf5 8. Ne5 Nxe5 9. dxe5 Ne4 (9... Nd7 $142) 10. Qxd5 ({White must play} 10. Nxd5 $16 {[%cal Oe5e6] aiming for e6!} g5 11. f3 gxf4 12. fxe4) 10... Nxc3 11. Qxd8+ Rxd8 12. bxc3 e6 13. f3 Bc2 $1 14. a4 Bc5 15. Be2 Rd7 16. Kf2 Ke7 (16... Rd2 $2 17. Ra2 $18) 17. Rhc1 Bd3 18. Rd1 Rhd8 19. Bg5+ (19. Rxd3 Rxd3 20. Rb1 R3d7 $17 (20... Rxc3 21. Bg5+ f6 22. Rxb7+ Ke8 23. exf6 $17)) 19... f6 20. exf6+ gxf6 21. Bh4 Bc2 22. Rxd7+ Rxd7 23. g4 (23. a5 $16) 23... h6 (23... Bb3 $1 $11) 24. f4 ({Better is} 24. a5 $16) 24... Bb3 25. g5 hxg5 26. fxg5 Rd2 27. gxf6+ Kf7 28. Bg5 Bc4 $1 29. Re1 Bd6 30. h4 {Black must now prevent Kf3.} Be5 {[%csl LRc3,LRf6]} 31. Kf3 Bxe2+ 32. Rxe2 Bxc3 $11 {[%mdl 4096] Endgame. KRB-KRB} 33. Re1 Bxf6 {The position is equal.} 34. Rb1 Rb2 35. Rxb2 Bxb2 {KB-KB} 36. Ke4 b5 37. axb5 axb5 38. h5 Bf6 39. Bh6 b4 40. Kd3 b3 41. e4 Be5 42. Bg5 {Weighted Error Value: White=0.16 (very precise) /Black=0.12 (very precise) .  Mistake:       	White=3     	Black=2      Inaccurate:     	White=3     	Black=2      OK:         	White=18    	Black=11     Best:        	---       	Black=2      Strong:       	---       	Black=2} 1/2-1/2

[Event "45th FIDE Olympiad 2024"]
[Site "Budapest"]
[Date "2024.09.15"]
[Round "5.124"]
[White "Azhar, Muhd Syakir Shazmeer"]
[Black "Lenaerts, Lennert"]
[Result "1/2-1/2"]
[ECO "B49"]
[WhiteElo "2086"]
[BlackElo "2300"]
[Annotator "TA"]
[PlyCount "120"]
[EventDate "2024.09.05"]
[EventType "team-tourn"]
[EventCountry "HUN"]
[SourceTitle "playchess.com"]
[Source "ChessBase"]
[SourceQuality "1"]
[WhiteTeam "Malaysia"]
[BlackTeam "Belgium"]
[WhiteTeamCountry "MAS"]
[BlackTeamCountry "BEL"]
[TimeControl "40/5400+30:1800+30"]

{[%evp 16,120,33,29,86,43,46,55,64,21,24,18,19,0,2,0,0,0,0,0,0,0,0,0,0,0,0,-15,-10,-18,0,0,0,-5,0,-3,0,0,0,-14,-16,-64,-24,-68,-59,-97,-47,-185,-100,-98,-63,-70,-70,-72,-76,-68,-24,-49,-49,-49,-41,-41,-41,-41,-41,-50,-58,-55,-48,-48,-48,-48,-48,-48,-48,-48,-29,-48,-48,-48,-48,-48,-48,-48,-48,-48,-48,-48,-48,-48,-41,-41,-17,-17,-22,-23,0,0,0,0,0,0,0,0,0,0,0]} 1. e4 c5 2. Nf3 e6 3. d4 cxd4 4. Nxd4 Nc6 5. Nc3 Qc7 6. Be3 a6 7. a3 b5 8. Nxc6 Qxc6 9. Be2 Bc5 (9... Bb7 $11) 10. Qd3 {White is more active.} Bxe3 11. Qxe3 Ne7 $1 {White is slightly better.} 12. Rd1 O-O 13. O-O Bb7 14. Bf3 Qc7 15. Rfe1 {[%cal Bf1e1,Be1d1,Bd1d7,Bd7b7][%mdl 32]} Rad8 16. e5 Bxf3 17. Qxf3 d6 18. exd6 Rxd6 19. Rxd6 Qxd6 20. Rd1 Qc7 21. Qd3 Rc8 22. Qd7 {[#] aiming for Qxc7.} Qxd7 23. Rxd7 $11 {[%mdl 4096] Endgame. KRN-KRN} Nc6 24. g3 Kf8 25. Rb7 Nd4 {[%cal Oc8c6]} 26. Ne4 f5 27. Nd6 Rxc2 28. Rf7+ $1 Kg8 {[%cal Oc2d2] With the idea ...Rd2!} 29. Ra7 {White threatens Ra8+ and mate.} h6 ({And not} 29... Rxb2 30. Ra8#) 30. Rxa6 Rxb2 (30... g5 $17 {[%cal Og5g4] ...g4! is the strong threat.} 31. h3 g4 (31... Rxb2 32. Kg2 $17) 32. hxg4 fxg4) 31. h4 {[#]} (31. Ra8+ $15 Kh7 32. Ra7) 31... f4 32. gxf4 $17 Ne2+ 33. Kh2 Nxf4 34. Rb6 Rxf2+ 35. Kg3 Nd3 36. Nxb5 Rb2 37. a4 {[%cal Oa4a5]} Ra2 38. Rxe6 Rxa4 39. Re3 Nf4 40. Nd6 Nh5+ 41. Kh3 Ra1 42. Nf5 Kh7 43. Ng3 Nf4+ 44. Kg4 Nd5 45. Re5 Ra4+ 46. Kf3 Ra3+ 47. Kf2 Nf6 48. Rb5 Ra4 49. h5 Ra7 50. Kf3 Kg8 51. Ne2 Ra3+ 52. Kg2 Ng4 53. Nf4 Kf7 54. Rb7+ Kf6 55. Nd5+ Ke5 56. Rxg7 {The position is equal.} Ra2+ 57. Kg3 Nf2 58. Nc3 Rc2 59. Re7+ Kd6 60. Re2 Rxc3+ {Weighted Error Value: White=0.11 (very precise) /Black=0.08 (flawless) .  Mistake:       	White=1     	Black=2      Inaccurate:     	White=4     	Black=3      OK:         	White=23    	Black=22     Best:        	White=2     	---        Strong:       	White=1     	Black=1} 1/2-1/2

[Event "45th FIDE Olympiad 2024"]
[Site "Budapest"]
[Date "2024.09.15"]
[Round "5.125"]
[White "Galaviz Medina, Sion Radamantys"]
[Black "Araujo Sanchez, Josue"]
[Result "1-0"]
[ECO "E49"]
[WhiteElo "2488"]
[BlackElo "2296"]
[Annotator "TA"]
[PlyCount "55"]
[EventDate "2024.09.05"]
[EventType "team-tourn"]
[EventCountry "HUN"]
[SourceTitle "playchess.com"]
[Source "ChessBase"]
[SourceQuality "1"]
[WhiteTeam "Mexico"]
[BlackTeam "Dominican Republic"]
[WhiteTeamCountry "MEX"]
[BlackTeamCountry "DOM"]
[TimeControl "40/5400+30:1800+30"]

{[%evp 19,55,4,11,1,48,31,34,16,22,27,11,11,63,62,84,64,87,77,95,92,56,62,110,103,79,14,15,2,62,14,130,97,208,197,204,193,29997,29998]} 1. d4 Nf6 2. c4 e6 3. Nc3 Bb4 4. e3 O-O 5. Bd3 c5 6. Nge2 d5 7. a3 Bxc3+ 8. bxc3 dxc4 9. Bxc4 Nc6 10. O-O e5 11. Qc2 Na5 (11... Bd7 $11) 12. Ba2 $14 Qc7 13. c4 {White is slightly better.} cxd4 14. exd4 exd4 15. Nxd4 Ng4 (15... Bd7 $11) 16. Nf3 Nc6 17. Bb2 {Repels Nd4} Qf4 18. Bb1 {[%csl Gb1][%cal Rc2h7] [#]} Qh6 19. h3 Nf6 20. a4 $36 {[%mdl 2048] White fights for an advantage.} Be6 (20... Re8 $14) 21. Ra3 $16 Rac8 22. Bxf6 (22. Ng5 $16) 22... gxf6 $11 23. Re1 Rfd8 (23... Kh8 $11) 24. Qb2 (24. c5 $14 {might be stronger.}) 24... Na5 (24... b6 $1 $11 {remains equal.}) 25. Nd4 $16 {White is more active.} Nxc4 (25... Kh8 $16 26. Nxe6 fxe6) 26. Rg3+ $18 (26. Qxb7 $2 {too greedy.} Nxa3 27. Nxe6 fxe6 $19) 26... Kh8 27. Qxb7 Rxd4 {[#]} (27... Nd6 $18 28. Qxa7 Rc1) 28. Qxc8+ $3 {[%mdl 512] Weighted Error Value: White=0.09 (flawless) /Black=0.64.  Mistake:       	White=2     	Black=7      OK:         	White=6     	Black=5      Best:        	White=5     	Black=1      Brilliant:      	White=1     	---} 1-0

[Event "45th FIDE Olympiad 2024"]
[Site "Budapest"]
[Date "2024.09.15"]
[Round "5.126"]
[White "Camacho Campusano, David Daniel"]
[Black "Cori Quispe, Kevin Joel"]
[Result "0-1"]
[ECO "B66"]
[WhiteElo "2219"]
[BlackElo "2461"]
[Annotator "RC"]
[PlyCount "97"]
[EventDate "2024.09.05"]
[EventType "team-tourn"]
[EventCountry "HUN"]
[SourceTitle "playchess.com"]
[Source "ChessBase"]
[SourceQuality "1"]
[WhiteTeam "Dominican Republic"]
[BlackTeam "Mexico"]
[WhiteTeamCountry "DOM"]
[BlackTeamCountry "MEX"]
[TimeControl "40/5400+30:1800+30"]

1. e4 c5 2. Nf3 Nc6 3. d4 cxd4 4. Nxd4 Nf6 5. Nc3 d6 6. Bg5 e6 7. Qd2 a6 8. Nxc6 bxc6 9. O-O-O Be7 10. Bxf6 gxf6 11. Bc4 Bb7 12. Rhe1 Qa5 13. Kb1 h5 14. f4 O-O-O 15. Nd5 Qxd2 16. Nxe7+ Kd7 17. Rxd2 Kxe7 18. Be2 e5 19. fxe5 fxe5 20. h4 d5 21. Bf3 d4 22. Rd3 c5 23. Rb3 Ba8 24. Kc1 Rd6 25. Kd2 Rf6 26. c3 Rc6 27. Rc1 Kd6 28. Rf1 Ke7 29. Rc1 Kd7 30. Rf1 Rg6 31. Ra3 Rb8 32. Kc1 Rgb6 33. Rf2 f5 34. Re2 fxe4 35. Bxe4 Bxe4 36. Rxe4 Kd6 37. cxd4 cxd4 38. Ra5 Rb5 39. Rxa6+ Kd5 40. Re2 e4 41. b3 e3 42. Rc2 Rf8 43. Rg6 Ke4 44. Re6+ Re5 45. Rxe5+ Kxe5 46. Rc7 Ke4 47. b4 Rf1+ 48. Kb2 e2 49. Re7+ 0-1

[Event "45th FIDE Olympiad 2024"]
[Site "Budapest"]
[Date "2024.09.15"]
[Round "5.127"]
[White "Ibarra Chami, Luis Fernando"]
[Black "Jimenez Jimenez, Leandro"]
[Result "1-0"]
[ECO "C42"]
[WhiteElo "2427"]
[BlackElo "2188"]
[Annotator "TA"]
[PlyCount "123"]
[EventDate "2024.09.05"]
[EventType "team-tourn"]
[EventCountry "HUN"]
[SourceTitle "playchess.com"]
[Source "ChessBase"]
[SourceQuality "1"]
[WhiteTeam "Mexico"]
[BlackTeam "Dominican Republic"]
[WhiteTeamCountry "MEX"]
[BlackTeamCountry "DOM"]
[TimeControl "40/5400+30:1800+30"]

{[%evp 12,123,58,65,52,48,60,46,51,41,37,46,39,47,58,54,58,58,76,64,67,58,70,58,53,0,0,0,10,0,-13,0,0,0,3,10,17,7,8,-27,0,-32,-22,-35,-27,-25,-16,-29,-15,-29,2,0,0,0,0,0,0,0,0,0,0,0,0,0,0,0,16,16,25,0,17,0,26,31,65,65,34,20,98,102,89,90,148,131,118,66,75,72,83,81,77,83,162,173,179,168,179,179,243,243,252,246,216,119,231,64,1119,1103,29970,29970,29969,29970,29961,29961]} 1. e4 e5 2. Nf3 Nf6 3. Nxe5 Nxe4 4. Qe2 Qe7 5. Qxe4 d6 6. d4 dxe5 7. dxe5 Nc6 {[%cal Bb8c6,Bc6e5,Be5g4][%mdl 32]} 8. Nc3 Qxe5 9. Qxe5+ Nxe5 {White is slightly better.} 10. Nb5 Bb4+ 11. Bd2 Bxd2+ 12. Kxd2 Kd7 13. Re1 Ng4 14. f3 Nh6 15. Bd3 c6 16. Nc3 {White is much more active.} Kd8 17. g4 f5 18. gxf5 Bxf5 19. Ne4 Kc7 20. Rhg1 g6 21. Kc3 Bxe4 22. Rxe4 Rae8 {Against Re7+} 23. Rh4 Nf7 24. f4 Nd6 25. Kd4 Rd8 {Threatens to win with ...Nf5+.} 26. Ke3 {[%cal Of4f5]} Rhe8+ 27. Kf3 Re7 28. Rg5 Rf8 29. Kg2 b6 30. Re5 Rfe8 31. Kf3 Kd7 32. b3 Rf7 33. Rxe8 Kxe8 $11 {[%mdl 4096] Endgame. KRB-KRN} 34. Rg4 Ke7 35. h4 Kf6 36. h5 {[%cal Rh5g6]} Nf5 37. Rg1 Re7 38. Rh1 Re3+ 39. Kf2 Re7 40. a4 c5 41. a5 Nd6 42. Kf3 Nf5 43. hxg6 hxg6 44. Rh8 Re3+ (44... bxa5 $11 {keeps the balance.} 45. Bxf5 gxf5) 45. Kf2 $16 {Black must now prevent Bxf5.} Re7 46. Rb8 Re6 (46... bxa5 $142 47. Rc8 Ng7) 47. Rf8+ $1 Kg7 48. Ra8 (48. Bxf5 $16 gxf5 49. Rxf5) 48... Re7 $14 49. Rb8 bxa5 50. Rc8 a4 51. bxa4 {[%cal Bb3a4,Ba4a5,Ba5a6][%mdl 32]} Nd6 (51... Nd4 $16 {might work better.}) 52. Rc6 $18 (52. Rxc5 $6 Ne4+ 53. Bxe4 Rxe4 $11) 52... Ne4+ {[#]} 53. Kf3 $1 Nd2+ 54. Kg2 Ne4 (54... Rf7 $142 55. Kf2 (55. Rxc5 Rxf4 56. Ra5 Rf7 $14) (55. Rxg6+ Kf8 $16) (55. Bxg6 Rxf4 56. Bd3 Rxa4 $11) 55... g5) 55. a5 Kf7 56. a6 g5 {[#]} 57. f5 (57. Rh6 $1 $18 {[%cal Rh6h7] Hoping for Rh7+.} Kg7 58. fxg5) 57... g4 (57... Nf6 $16 {is a better defense.} 58. Bc4+ (58. Rxc5 Ng4 $16) 58... Kg7) 58. Rg6 $2 (58. Bc4+ $18 Kg7 59. Rg6+ Kh7 60. Bd3 (60. Rxg4 Rg7 $14)) 58... Re5 $2 {[%mdl 8192] This move loses the game for Black.} (58... Nd2 $14) 59. Re6 {[%cal Od3e4]} ({Not} 59. Rxg4 Nd6 $16) 59... Rxe6 60. fxe6+ {White mates.} Kxe6 61. Bxe4 Ke5 62. Bc6 {Weighted Error Value: White=0.15 (very precise) /Black=0.24 (precise) .  Loses game:     	---       	Black=1      Missed win:     	White=1     	---        Mistake:       	White=2     	Black=5      Inaccurate:     	White=3     	Black=5      OK:         	White=17    	Black=20     Best:        	White=7     	---        Strong:       	White=1     	---} 1-0

[Event "45th FIDE Olympiad 2024"]
[Site "Budapest"]
[Date "2024.09.15"]
[Round "5.128"]
[White "Mendez Ramirez, Victor"]
[Black "Palma Villanueva, Miguel Tadeo"]
[Result "1/2-1/2"]
[ECO "E61"]
[WhiteElo "2191"]
[BlackElo "2266"]
[Annotator "TA"]
[PlyCount "109"]
[EventDate "2024.09.05"]
[EventType "team-tourn"]
[EventCountry "HUN"]
[SourceTitle "playchess.com"]
[Source "ChessBase"]
[SourceQuality "1"]
[WhiteTeam "Dominican Republic"]
[BlackTeam "Mexico"]
[WhiteTeamCountry "DOM"]
[BlackTeamCountry "MEX"]
[TimeControl "40/5400+30:1800+30"]

{[%evp 13,109,10,41,25,24,3,27,27,22,-43,-31,-18,0,0,0,0,0,0,0,0,8,4,40,41,43,52,35,23,29,8,12,12,30,32,29,24,32,24,22,16,26,17,66,71,143,141,129,129,112,0,0,0,0,0,0,-11,0,0,0,0,0,0,0,0,0,0,0,-8,-8,-9,-8,-9,-9,-9,-9,-9,-9,-9,-9,-9,-9,-9,-9,-9,-9,-9,-9,-9,-9,-9,-9,-9,-9,-9,-9,-9,0,0]} 1. c4 g6 2. Nc3 Bg7 3. d4 c5 4. e3 Nf6 5. d5 d6 6. Nf3 O-O 7. Be2 e6 8. O-O exd5 9. cxd5 Re8 10. Nd2 {White has an edge.} Na6 11. Bc4 ({White should play} 11. e4 $11) 11... Nc7 $15 12. a4 Bf5 13. Re1 Ng4 14. Nf3 {Dodges Qh4} Ne5 15. Nxe5 Bxe5 16. Bf1 Na6 17. e4 Bxc3 18. bxc3 Rxe4 19. Rxe4 Bxe4 20. f3 Bf5 21. Bf4 {[%mdl 1024] White has compensation.} g5 22. Be3 Qe7 23. Qd2 $36 {[%mdl 2048] White has good play.} f6 24. Re1 {[%cal Oe3g5] Bxg5! would now be deadly.} Re8 {[#]} 25. h4 $1 h6 26. g4 Bc8 27. hxg5 hxg5 (27... fxg5 $11 {deserves consideration.} 28. Bb5 Rf8) 28. Bd3 Qf7 (28... Qg7 $142) 29. Kf2 {White is more active.} c4 30. Bxc4 Qh7 {Prevents Rh1} 31. Kg2 {Dodges Qh2+} (31. Bxa7 $2 {perishes.} Qh2+ 32. Kf1 Qxd2 $19) (31. Kg1 $16) 31... Bxg4 $1 $11 {The position is equal.} 32. fxg4 Qe4+ 33. Kf2 Qxc4 34. Qd4 {Really sharp!} Qc7 {[#] Strongly threatening ...Qh7.} (34... Qxd4 {simplifies} 35. Bxd4 Rxe1 36. Kxe1 Kf7) 35. Qd3 (35. Qxf6 $2 {loses.} Rf8 $19) 35... Qh7 {Wards off Qg6+} 36. Qxh7+ Kxh7 37. Bxa7 Rxe1 38. Kxe1 {[%mdl 4096] Endgame. KB-KN} Kg6 39. Bf2 f5 40. gxf5+ Kxf5 41. Bg3 Ke4 42. Bxd6 Kxd5 43. Be7 g4 44. Kf2 Nc5 45. Kg3 Nxa4 46. Kxg4 Nxc3 47. Kf3 Kd4 48. Kf2 b5 49. Ke1 Kd3 50. Bf8 $1 Kc2 51. Bc5 Kb3 52. Bf8 Ne4 53. Kd1 Kc4 54. Kc2 Nc5 55. Bxc5 {Weighted Error Value: White=0.09 (flawless) /Black=0.07 (flawless) .  Mistake:       	White=2     	Black=2      Inaccurate:     	---       	Black=1      OK:         	White=23    	Black=24     Best:        	---       	Black=1      Strong:       	White=1     	Black=1} 1/2-1/2